bitfinex-derivatives/quotes_SOLF0:USTF0_20250428
["timestamp","ask_amount","ask_price","bid_price","bid_amount"]
[1745814825727,24.46,149.17,149.1,7.14739175]
[1745814825922,31.1617,149.17,149.1,7.14739175]
[1745814826127,24.46,149.17,149.1,7.14739175]
[1745814826429,6.7025,149.15,149.1,7.14739175]
[1745814826630,31.60739175,149.17,149.08,7.14739175]
[1745814827027,6.7034,149.13,149.07,4.0327]
[1745814827328,31.1634,149.13,149.07,4.0327]
[1745814827831,31.1634,149.13,149.09,6.7048]
[1745814828130,31.1634,149.13,149.08,7.14739175]
[1745814828528,24.46,149.13,149.08,7.14739175]
[1745814829032,24.46,149.13,149.1,6.7043]
[1745814829333,31.1635,149.13,149.1,6.7043]
[1745814829546,24.46,149.13,149.07,4.0327]
[1745814829841,24.46,149.13,149.07,1.9558]
[1745814830339,6.7039,149.12,149.09,6.705]
[1745814831042,31.1635,149.13,149.1,6.7047]
[1745814831837,24.46,149.13,149.1,6.7047]
[1745814833838,24.46,149.13,149.11,6.7042]
[1745814835345,24.46,149.13,149.1,6.7046]
[1745814836042,24.46,149.13,149.08,6.7052]
[1745814836344,31.60739175,149.13,149.08,6.7052]
[1745814836542,24.46,149.13,149.07,7.14739175]
[1745814836737,31.1635,149.13,149.07,7.14739175]
[1745814837244,31.1635,149.13,149.09,6.7049]
[1745814837840,31.1635,149.13,149.1,6.7047]
[1745814838543,24.46,149.13,149.09,7.14739175]
[1745814838935,24.48,149.16,149.09,7.14739175]
[1745814840041,31.1822,149.16,149.09,7.14739175]
[1745814840542,24.48,149.16,149.09,7.14739175]
[1745814840742,6.7028,149.15,149.11,6.7042]
[1745814843541,11.28509089,149.15,149.12,6.7038]
[1745814844045,35.76449089,149.16,149.12,6.7038]
[1745814844343,35.76449089,149.16,149.12,11.28609089]
[1745814844543,24.48,149.16,149.13,11.28559089]
[1745814845143,29.06229089,149.16,149.12,4.58229089]
[1745814845342,4.58229089,149.13,149.09,4.58229089]
[1745814845544,4.58229089,149.12,149.09,6.7049]
[1745814846442,11.28619089,149.12,149.08,4.58229089]
[1745814846849,4.58229089,149.13,149.08,4.58229089]
[1745814847048,4.58229089,149.14,149.1,4.58229089]
[1745814847248,4.58229089,149.13,149.07,24.48]
[1745814847543,4.58229089,149.13,149.09,11.28709089]
[1745814847749,4.58229089,149.11,149.07,24.48]
[1745814847945,11.28679089,149.11,149.07,6.7057]
[1745814848145,4.58229089,149.11,149.07,4.58229089]
[1745814848447,4.58229089,149.09,149.06,6.7062]
[1745814848647,4.58229089,149.09,149.05,6.61419089]
[1745814848949,4.58229089,149.09,149.05,4.58229089]
[1745814849145,4.58229089,149.07,149.03,4.58229089]
[1745814849348,4.58229089,149.06,149.02,12.38650377]
[1745814849950,31.1858,149.08,149.03,4.58229089]
[1745814850151,35.76809089,149.08,149.04,11.28929089]
[1745814850451,29.06229089,149.08,149.04,4.58229089]
[1745814850651,24.48,149.08,149.04,4.58229089]
[1745814851052,24.48,149.08,149.05,6.7067]
[1745814851449,4.58229089,149.1,149.05,4.58229089]
[1745814851651,24.48,149.1,149.07,6.7057]
[1745814851852,24.48,149.1,149.03,7.16430076]
[1745814852053,24.48,149.1,149.07,6.7058]
[1745814853051,24.48,149.1,149.08,6.7056]
[1745814853352,24.48,149.1,149.03,7.16430076]
[1745814853558,24.48,149.1,149.05,7.16430076]
[1745814854249,24.48,149.1,149.07,6.7058]
[1745814855153,24.48,149.1,149.08,6.7055]
[1745814855552,24.48,149.1,149.05,7.16430076]
[1745814855948,24.48,149.1,149.09,6.7052]
[1745814857354,24.48,149.1,149.08,6.7054]
[1745814858557,24.48,149.1,149.09,6.7052]
[1745814858752,24.48,149.14,149.08,7.16430076]
[1745814859354,24.48,149.14,149.1,6.7045]
[1745814860356,24.48,149.14,149.08,7.16430076]
[1745814860958,24.48,149.14,149.13,6.7034]
[1745814861557,31.1818,149.17,149.14,6.7029]
[1745814863558,31.1818,149.17,149.13,6.7032]
[1745814864061,7.16430076,149.19,149.13,6.7032]
[1745814864062,6.7021,149.16,149.13,6.7032]
[1745814866058,31.64430076,149.17,149.09,24.48]
[1745814866554,6.7028,149.15,149.09,24.48]
[1745814866751,6.7028,149.15,149.11,6.7039]
[1745814867262,6.7022,149.16,149.12,6.7038]
[1745814867460,24.48,149.17,149.1,7.16430076]
[1745814867861,31.1816,149.17,149.13,6.703]
[1745814868756,31.64430076,149.17,149.08,7.16430076]
[1745814869159,6.7034,149.13,149.08,7.16430076]
[1745814869360,31.64430076,149.17,149.1,6.7044]
[1745814869961,7.16430076,149.15,149.07,5.8878]
[1745814870159,7.16430076,149.15,149.07,1.9824]
[1745814870459,6.7035,149.13,149.07,1.9824]
[1745814870661,24.5,149.13,149.07,9.14670076]
[1745814871063,24.5,149.13,149.11,6.7041]
[1745814871762,31.2022,149.16,149.12,6.7034]
[1745814871961,24.5,149.16,149.12,6.7034]
[1745814872265,6.7028,149.15,149.11,6.7041]
[1745814872466,24.5,149.16,149.11,6.7041]
[1745814872768,6.7027,149.15,149.12,6.7038]
[1745814872967,6.7027,149.15,149.09,7.16430076]
[1745814873165,24.5,149.16,149.09,7.16430076]
[1745814873565,11.28540262,149.14,149.11,6.704]
[1745814874263,4.58250262,149.14,149.11,6.704]
[1745814875468,4.58250262,149.12,149.04,31.21685152]
[1745814875667,4.58250262,149.1,149.06,4.58250262]
[1745814876064,29.08250262,149.11,149.07,4.58250262]
[1745814876366,8.60940262,149.13,149.09,4.58250262]
[1745814876567,28.5269,149.13,149.1,4.58250262]
[1745814876863,4.0269,149.13,149.1,4.58250262]
[1745814877064,24.5,149.13,149.1,4.58250262]
[1745814877570,24.5,149.13,149.03,28.4219]
[1745814877571,35.78600262,149.13,149.08,4.58250262]
[1745814877771,4.58250262,149.12,149.08,4.58250262]
[1745814879272,4.58250262,149.12,149.1,6.7047]
[1745814880070,29.08250262,149.13,149.11,6.7041]
[1745814880275,24.5,149.13,149.11,6.7041]
[1745814880471,24.5,149.13,149.1,4.58250262]
[1745814880670,24.5,149.13,149.11,6.704]
[1745814885873,24.5,149.13,149.12,6.7038]
[1745814886081,6.1604,149.22,149.11,4.58250262]
[1745814886082,29.08250262,149.16,149.11,4.58250262]
[1745814886376,4.58250262,149.15,149.1,4.58250262]
[1745814886574,11.28530262,149.15,149.1,4.58250262]
[1745814886876,4.58250262,149.15,149.1,4.58250262]
[1745814887475,4.58250262,149.15,149.13,6.7033]
[1745814887676,4.58250262,149.15,149.1,4.58250262]
[1745814887977,4.58250262,149.15,149.12,6.7037]
[1745814888177,11.28520262,149.15,149.12,6.7037]
[1745814889477,4.58250262,149.15,149.12,6.7037]
[1745814889678,4.58250262,149.15,149.13,6.7032]
[1745814890880,4.58250262,149.15,149.12,6.7036]
[1745814891178,11.28500262,149.15,149.12,6.7036]
[1745814892083,11.28500262,149.15,149.11,6.7041]
[1745814893482,11.28500262,149.15,149.12,6.7038]
[1745814894286,11.28500262,149.15,149.11,6.7041]
[1745814894782,11.28500262,149.15,149.1,4.58250262]
[1745814894982,11.28500262,149.15,149.12,6.7035]
[1745814896283,31.2022,149.16,149.12,6.7035]
[1745814896483,31.2022,149.16,149.13,6.7033]
[1745814896484,4.58250262,149.15,149.13,6.7033]
[1745814896787,4.58250262,149.15,149.11,4.58250262]
[1745814896983,4.58250262,149.14,149.08,1.9573]
[1745814897187,4.58250262,149.13,149.09,4.58250262]
[1745814897487,11.28590262,149.13,149.1,6.7046]
[1745814897787,4.58250262,149.13,149.1,6.7046]
[1745814897986,11.28570262,149.14,149.1,6.7046]
[1745814898583,11.28570262,149.14,149.11,6.7041]
[1745814898787,11.28510262,149.15,149.11,11.28660262]
[1745814898986,4.58250262,149.15,149.11,11.28660262]
[1745814899686,4.58250262,149.14,149.11,6.7041]
[1745814900390,11.28550262,149.14,149.11,6.7041]
[1745814900688,11.28550262,149.14,149.1,11.28710262]
[1745814901287,6.7034,149.13,149.09,6.705]
[1745814901491,4.58250262,149.1,149.06,31.21685152]
[1745814901790,4.58250262,149.11,149.06,35.79935414]
[1745814901992,4.58250262,149.11,149.08,6.7056]
[1745814902293,24.26,149.12,149.09,4.58250262]
[1745814902482,4.58250262,149.13,149.1,6.7043]
[1745814904396,4.58250262,149.14,149.1,4.58250262]
[1745814904589,35.54510262,149.15,149.11,4.58250262]
[1745814905189,35.54510262,149.15,149.11,11.28670262]
[1745814905390,11.28550262,149.14,149.1,4.58250262]
[1745814905590,4.58250262,149.13,149.09,4.58250262]
[1745814905792,4.58250262,149.13,149.1,6.7045]
[1745814906693,11.28590262,149.13,149.1,6.7045]
[1745814907287,11.28590262,149.13,149.09,6.705]
[1745814907488,11.28650262,149.12,149.07,4.58250262]
[1745814907889,11.28650262,149.12,149.08,6.7053]
[1745814910492,11.28680262,149.11,149.07,11.28840262]
[1745814910893,11.28680262,149.11,149.07,6.7059]
[1745814911094,11.28680262,149.11,149.07,11.28840262]
[1745814911894,11.28680262,149.11,149.08,6.7055]
[1745814912188,4.58250262,149.11,149.08,6.7055]
[1745814912383,6.704,149.12,149.09,11.28740262]
[1745814913095,11.28610262,149.13,149.09,11.28740262]
[1745814913293,4.58250262,149.13,149.09,11.28740262]
[1745814913694,4.58250262,149.11,149.08,6.7054]
[1745814914490,4.58250262,149.11,149.09,6.7051]
[1745814914694,6.7041,149.12,149.09,6.7051]
[1745814915696,30.9841,149.12,149.09,6.7051]
[1745814922399,30.9841,149.12,149.08,11.28790262]
[1745814922799,6.7045,149.11,149.04,26.216]
[1745814923000,4.58250262,149.11,149.06,4.58250262]
[1745814923498,4.58250262,149.11,149.07,6.7058]
[1745814924300,6.7047,149.1,149.07,6.7058]
[1745814928804,11.28700262,149.11,149.07,6.7058]
[1745814929907,6.7047,149.1,149.07,6.7058]
[1745814931704,28.86250262,149.12,149.09,4.58250262]
[1745814932103,28.86250262,149.12,149.08,4.58250262]
[1745814932402,35.56660262,149.12,149.08,4.58250262]
[1745814932702,24.28,149.12,149.09,11.28740262]
[1745814932910,24.28,149.12,149.09,4.58250262]
[1745814933103,24.28,149.12,149.1,4.58250262]
[1745814933299,24.28,149.12,149.1,11.28690262]
[1745814933710,30.8423,149.16,149.12,6.7034]
[1745814933899,30.8423,149.16,149.13,4.58250262]
[1745814934103,30.8423,149.16,149.12,6.7034]
[1745814934104,28.72250262,149.16,149.12,11.28590262]
[1745814935411,28.72250262,149.16,149.12,4.58250262]
[1745814935807,4.58250262,149.15,149.11,11.28660262]
[1745814936007,11.28520262,149.15,149.11,11.28660262]
[1745814942721,4.58250262,149.13,149.1,6.7045]
[1745814943110,24.14,149.16,149.11,4.58250262]
[1745814943416,24.14,149.19,149.15,4.58250262]
[1745814943719,30.841,149.19,149.16,4.58250262]
[1745814943920,35.42350262,149.19,149.15,11.28470262]
[1745814944712,35.42350262,149.19,149.09,3.8905]
[1745814944713,24.14,149.19,149.16,11.28420262]
[1745814945822,24.14,149.19,149.17,6.7015]
[1745814946222,24.14,149.19,149.16,4.58250262]
[1745814946521,24.14,149.19,149.17,4.58250262]
[1745814947323,24.14,149.19,149.17,11.28390262]
[1745814947823,24.14,149.19,149.17,6.7014]
[1745814948013,28.72250262,149.19,149.15,4.58250262]
[1745814948521,35.42330262,149.19,149.15,11.28470262]
[1745814948822,35.42330262,149.19,149.15,4.58250262]
[1745814949122,6.7011,149.18,149.15,11.28480262]
[1745814950022,35.42330262,149.19,149.15,11.28480262]
[1745814950523,28.72250262,149.19,149.15,11.28480262]
[1745814950817,28.72250262,149.19,149.15,4.58250262]
[1745814951023,6.7014,149.18,149.15,4.58250262]
[1745814951320,4.58250262,149.16,149.09,389.0305]
[1745814951519,11.28510262,149.15,149.12,6.7038]
[1745814951919,4.58250262,149.15,149.11,4.58250262]
[1745814952120,6.7034,149.13,149.09,28.72250262]
[1745814952320,11.28590262,149.13,149.09,4.58250262]
[1745814952520,4.58250262,149.13,149.1,6.7043]
[1745814952916,4.58250262,149.13,149.08,35.79935414]
[1745814953121,11.28670262,149.12,149.08,35.79935414]
[1745814953423,4.58250262,149.11,149.08,31.21685152]
[1745814953627,6.7052,149.09,149.06,7.80421288]
[1745814953822,4.58250262,149.07,149.06,7.80421288]
[1745814954120,24.14,149.1,149.06,7.80421288]
[1745814954320,28.72250262,149.1,149.06,12.3867155]
[1745814954725,24.14,149.1,149.07,6.7058]
[1745814955027,24.14,149.1,149.09,4.58250262]
[1745814955229,28.72250262,149.13,149.09,4.58250262]
[1745814955416,24.14,149.13,149.09,4.58250262]
[1745814955621,511.38250262,149.16,149.12,4.58250262]
[1745814955825,4.58250262,149.15,149.11,6.7038]
[1745814956422,4.58250262,149.15,149.12,6.7038]
[1745814956923,4.58250262,149.14,149.11,6.7042]
[1745814957218,4.58250262,149.14,149.1,4.58250262]
[1745814957726,4.58250262,149.15,149.1,4.58250262]
[1745814958225,4.58250262,149.15,149.12,6.7038]
[1745814959120,4.58250262,149.15,149.13,6.7033]
[1745814959325,28.72250262,149.16,149.13,6.7033]
[1745814959624,4.58250262,149.15,149.13,6.7033]
[1745814960027,4.58250262,149.15,149.12,11.28620262]
[1745814960222,4.58250262,149.15,149.12,6.7037]
[1745814962027,4.58250262,149.15,149.13,6.7033]
[1745814962227,28.72250262,149.16,149.12,4.58250262]
[1745814962527,4.58250262,149.17,149.13,4.58250262]
[1745814962720,4.58250262,149.18,149.13,4.58250262]
[1745814963427,4.58250262,149.18,149.16,6.702]
[1745814964027,4.58250262,149.18,149.15,6.7023]
[1745814965527,4.58250262,149.18,149.16,6.702]
[1745814965726,28.76250262,149.2,149.16,4.58250262]
[1745814965931,28.76250262,149.2,149.17,6.7015]
[1745814966432,28.76250262,149.2,149.16,4.58250262]
[1745814966731,28.76250262,149.2,149.17,6.7015]
[1745814966935,24.18,149.2,149.17,6.7015]
[1745814967135,24.18,149.2,149.16,4.58250262]
[1745814968030,24.18,149.2,149.17,4.58250262]
[1745814968230,24.18,149.2,149.18,6.7011]
[1745814970636,24.18,149.2,149.17,11.28390262]
[1745814970834,35.46270262,149.2,149.17,6.7014]
[1745814971038,4.58250262,149.19,149.15,4.58250262]
[1745814971535,4.58250262,149.17,149.13,4.58250262]
[1745814971735,4.58250262,149.16,149.13,6.7031]
[1745814971936,4.58250262,149.15,149.11,4.58250262]
[1745814972436,4.58250262,149.15,149.12,6.7037]
[1745814973238,24.18,149.16,149.14,4.58250262]
[1745814973436,4.58250262,149.18,149.14,4.58250262]
[1745814974037,28.76250262,149.19,149.16,6.702]
[1745814974237,28.76250262,149.19,149.15,4.58250262]
[1745814974437,28.76250262,149.19,149.16,6.7019]
[1745814978238,24.18,149.19,149.17,6.7015]
[1745814979040,28.76250262,149.19,149.16,6.7019]
[1745814979338,4.58250262,149.18,149.14,4.58250262]
[1745814979539,4.58250262,149.18,149.15,6.7024]
[1745814980642,11.28370262,149.18,149.14,11.28530262]
[1745814980842,11.28370262,149.18,149.14,6.7028]
[1745814981142,11.28430262,149.17,149.13,30.8833]
[1745814981342,4.58250262,149.16,149.11,4.58250262]
[1745814981743,4.58250262,149.15,149.11,4.58250262]
[1745814982242,4.58250262,149.15,149.13,6.7033]
[1745814982443,24.18,149.19,149.14,4.58250262]
[1745814982642,4.58250262,149.21,149.17,4.58250262]
[1745814982844,4.58250262,149.21,149.16,4.58250262]
[1745814983044,11.28240262,149.21,149.17,6.7012]
[1745814985042,11.28240262,149.21,149.18,6.7011]
[1745814985541,11.28240262,149.21,149.16,4.58250262]
[1745814985741,11.28240262,149.21,149.17,6.7013]
[1745814986038,4.58250262,149.2,149.17,6.7013]
[1745814986237,11.28280262,149.2,149.17,6.7013]
[1745814986447,4.58250262,149.19,149.16,6.7019]
[1745814986643,4.58250262,149.18,149.16,6.7019]
[1745814987442,4.58250262,149.18,149.15,6.7023]
[1745814987740,4.58250262,149.19,149.15,4.58250262]
[1745814988142,4.58250262,149.19,149.16,6.7017]
[1745814988646,4.58250262,149.18,149.16,6.7017]
[1745814992849,4.58250262,149.19,149.16,6.7017]
[1745814993548,28.0726,149.22,149.17,4.58250262]
[1745814993744,4.58250262,149.21,149.17,4.58250262]
[1745814994148,4.58250262,149.21,149.18,6.7008]
[1745814995653,34.772,149.22,149.18,6.7008]
[1745814995851,39.35450262,149.22,149.18,6.7008]
[1745814996250,24.18,149.22,149.19,4.58250262]
[1745814996444,4.0746,149.28,149.21,4.58250262]
[1745814996649,24.12,149.27,149.23,4.58250262]
[1745814996843,24.12,149.27,149.24,4.58250262]
[1745814997149,24.12,149.27,149.25,6.6978]
[1745814997454,11.27880262,149.29,149.25,11.28030262]
[1745814997651,517.95840262,149.3,149.25,11.28030262]
[1745814998156,511.26250262,149.3,149.26,11.28000262]
[1745814998454,28.70250262,149.3,149.26,11.28000262]
[1745814999254,35.39830262,149.3,149.26,11.28000262]
[1745815000357,11.27870262,149.29,149.25,11.28030262]
[1745815000654,4.58250262,149.29,149.25,4.58250262]
[1745815001053,4.58250262,149.29,149.26,6.6972]
[1745815001252,35.39840262,149.3,149.25,4.58250262]
[1745815001550,28.70250262,149.3,149.25,4.58250262]
[1745815002456,35.39860262,149.3,149.25,4.58250262]
[1745815003558,35.39860262,149.3,149.25,11.28020262]
[1745815003754,6.6963,149.29,149.25,11.28020262]
[1745815004556,11.27880262,149.29,149.25,11.28020262]
[1745815004758,4.58250262,149.29,149.26,6.6975]
[1745815005759,6.6962,149.29,149.25,11.28030262]
[1745815009558,6.6962,149.29,149.25,6.6978]
[1745815009559,6.6967,149.28,149.25,6.6978]
[1745815009865,4.58250262,149.29,149.24,11.28080262]
[1745815010163,11.27900262,149.29,149.25,6.6978]
[1745815012462,4.58250262,149.28,149.2,24.12]
[1745815012764,4.58250262,149.22,149.18,4.58250262]
[1745815013160,4.58250262,149.23,149.19,6.7006]
[1745815013360,4.58250262,149.23,149.19,11.28310262]
[1745815013765,4.58250262,149.22,149.19,11.28310262]
[1745815014264,4.58250262,149.22,149.2,6.7002]
[1745815014666,4.58250262,149.23,149.2,6.7002]
[1745815014966,4.58250262,149.23,149.2,11.28270262]
[1745815015164,4.58250262,149.24,149.21,4.58250262]
[1745815016161,4.58250262,149.24,149.22,6.6989]
[1745815016465,4.58250262,149.24,149.2,4.58250262]
[1745815017067,4.58250262,149.23,149.2,6.7001]
[1745815018470,11.28140262,149.23,149.2,6.7001]
[1745815018663,4.58250262,149.23,149.18,4.58250262]
[1745815018864,4.58250262,149.21,149.17,30.64300262]
[1745815019065,11.28240262,149.21,149.17,6.7013]
[1745815021868,24.12,149.25,149.16,11.28450262]
[1745815021869,11.28310262,149.2,149.16,11.28450262]
[1745815022666,4.58250262,149.2,149.17,6.7015]
[1745815023367,4.58250262,149.2,149.18,6.7011]
[1745815023568,28.70250262,149.24,149.19,4.58250262]
[1745815023868,28.70250262,149.24,149.21,4.58250262]
[1745815024058,24.12,149.24,149.22,11.28150262]
[1745815024259,4.58250262,149.25,149.22,11.28150262]
[1745815024458,4.58250262,149.24,149.21,4.58250262]
[1745815024657,4.58250262,149.23,149.2,6.6998]
[1745815025170,4.58250262,149.23,149.21,6.6998]
[1745815025363,4.58250262,149.24,149.21,4.58250262]
[1745815025664,4.58250262,149.25,149.21,4.58250262]
[1745815026671,26.1599,149.27,149.2,4.58250262]
[1745815026672,4.58250262,149.24,149.2,4.58250262]
[1745815026868,4.58250262,149.25,149.2,4.58250262]
[1745815027362,24.12,149.27,149.23,4.58250262]
[1745815027571,28.70250262,149.27,149.23,4.58250262]
[1745815027769,28.70250262,149.27,149.24,6.6981]
[1745815028571,4.58250262,149.27,149.24,6.6981]
[1745815029670,11.27960262,149.27,149.24,6.6981]
[1745815030170,4.58250262,149.26,149.23,11.28120262]
[1745815030972,4.58250262,149.26,149.24,6.6983]
[1745815031268,35.39930262,149.28,149.24,11.28080262]
[1745815031667,35.39930262,149.28,149.25,6.698]
[1745815031871,24.12,149.28,149.25,4.58250262]
[1745815032069,6.6962,149.3,149.26,4.58250262]
[1745815032271,28.70250262,149.31,149.27,6.697]
[1745815032471,28.70250262,149.31,149.26,4.58250262]
[1745815032472,6.6959,149.3,149.26,4.58250262]
[1745815032965,6.6959,149.3,149.26,11.27960262]
[1745815033269,11.27840262,149.3,149.26,11.27960262]
[1745815034067,24.12,149.31,149.28,4.58250262]
[1745815034267,24.12,149.31,149.29,4.58250262]
[1745815035267,24.12,149.31,149.29,11.27840262]
[1745815036571,24.12,149.31,149.28,11.27910262]
[1745815036773,28.70250262,149.31,149.27,4.58250262]
[1745815037272,35.39790262,149.31,149.27,11.27920262]
[1745815037469,4.58250262,149.3,149.25,4.58250262]
[1745815037772,11.27880262,149.29,149.25,11.28010262]
[1745815038071,4.58250262,149.29,149.25,4.58250262]
[1745815038371,4.58250262,149.3,149.25,4.58250262]
[1745815038572,4.58250262,149.3,149.26,4.58250262]
[1745815038771,28.70250262,149.31,149.27,4.58250262]
[1745815038967,24.12,149.31,149.29,4.58250262]
[1745815039468,35.39670262,149.34,149.31,6.6952]
[1745815039773,28.70250262,149.34,149.29,4.58250262]
[1745815041271,35.39660262,149.34,149.3,6.6956]
[1745815041870,11.27720262,149.33,149.28,4.58250262]
[1745815042074,4.58250262,149.32,149.27,4.58250262]
[1745815042377,11.27770262,149.32,149.28,6.6963]
[1745815043477,11.27790262,149.31,149.28,6.6963]
[1745815044076,4.58250262,149.31,149.28,6.6963]
[1745815045378,4.58250262,149.31,149.29,6.6961]
[1745815046878,11.27740262,149.32,149.29,6.6961]
[1745815047078,11.27700262,149.33,149.29,6.6961]
[1745815047680,11.27700262,149.33,149.3,6.6957]
[1745815048080,4.58250262,149.33,149.3,6.6957]
[1745815055582,4.58250262,149.33,149.32,6.6948]
[1745815055781,4.58250262,149.36,149.31,4.58250262]
[1745815055984,4.58250262,149.35,149.3,4.58250262]
[1745815056681,4.58250262,149.35,149.31,6.6951]
[1745815056882,24.1,149.37,149.28,4.58250262]
[1745815056883,4.58250262,149.33,149.28,4.58250262]
[1745815057178,4.58250262,149.31,149.27,4.58250262]
[1745815057381,4.58250262,149.29,149.25,4.58250262]
[1745815058384,4.58250262,149.29,149.26,6.6972]
[1745815059283,11.27870262,149.29,149.26,6.6972]
[1745815059486,4.58250262,149.29,149.26,6.6972]
[1745815062181,4.58250262,149.29,149.27,6.697]
[1745815062887,4.58250262,149.29,149.25,4.58250262]
[1745815062888,4.58250262,149.29,149.26,6.6974]
[1745815063589,4.58250262,149.29,149.27,6.6971]
[1745815065688,11.27840262,149.3,149.27,6.6971]
[1745815066492,4.58250262,149.3,149.27,6.6971]
[1745815066680,11.27800262,149.31,149.28,6.6965]
[1745815068392,11.27800262,149.31,149.27,11.27940262]
[1745815068593,11.27800262,149.31,149.26,4.58250262]
[1745815068788,11.27800262,149.31,149.27,4.58250262]
[1745815069299,11.27800262,149.31,149.27,11.27930262]
[1745815069691,11.27800262,149.31,149.27,6.6968]
[1745815069892,11.27800262,149.31,149.28,6.6964]
[1745815070094,4.58250262,149.31,149.28,6.6964]
[1745815071294,11.27790262,149.31,149.28,6.6964]
[1745815071695,4.58250262,149.31,149.29,6.696]
[1745815073494,24.1,149.32,149.3,4.58250262]
[1745815073694,24.1,149.35,149.31,4.58250262]
[1745815073995,24.1,149.35,149.33,6.6941]
[1745815074293,4.58250262,149.34,149.3,4.58250262]
[1745815074593,4.58250262,149.33,149.29,4.58250262]
[1745815074792,24.1,149.35,149.28,5.8218]
[1745815074793,4.58250262,149.32,149.28,10.40430262]
[1745815075093,4.58250262,149.32,149.28,6.48270262]
[1745815075894,11.27770262,149.32,149.28,13.17920262]
[1745815076094,4.58250262,149.31,149.27,28.68250262]
[1745815076393,4.58250262,149.31,149.27,4.58250262]
[1745815076894,11.27810262,149.31,149.27,11.27930262]
[1745815077894,4.58250262,149.31,149.28,6.6966]
[1745815078090,6.6949,149.32,149.28,4.58250262]
[1745815078091,4.58250262,149.32,149.28,4.58250262]
[1745815078292,4.58250262,149.33,149.28,4.58250262]
[1745815078491,4.58250262,149.33,149.29,6.6959]
[1745815079194,11.27720262,149.33,149.29,6.6959]
[1745815080798,11.27720262,149.33,149.29,11.27840262]
[1745815081399,11.27720262,149.33,149.3,6.6957]
[1745815081698,28.68250262,149.35,149.31,4.58250262]
[1745815081999,35.37630262,149.35,149.31,11.27750262]
[1745815082200,28.68250262,149.35,149.31,4.58250262]
[1745815082498,24.1,149.35,149.34,6.6939]
[1745815082694,28.68250262,149.39,149.34,4.58250262]
[1745815082903,24.1,149.39,149.35,4.58250262]
[1745815083096,24.1,149.39,149.36,6.693]
[1745815083696,24.1,149.39,149.38,11.27460262]
[1745815083905,24.1,149.39,149.38,4.58250262]
[1745815084201,4.58250262,149.41,149.37,4.58250262]
[1745815084801,4.58250262,149.4,149.35,4.58250262]
[1745815085003,4.58250262,149.37,149.32,28.68250262]
[1745815085203,4.58250262,149.35,149.31,4.58250262]
[1745815085808,6.6939,149.34,149.31,4.58250262]
[1745815086009,4.58250262,149.34,149.3,16.37948497]
[1745815086204,24.08,149.37,149.3,7.82748235]
[1745815086205,4.58250262,149.33,149.3,7.82748235]
[1745815086609,11.27720262,149.33,149.3,7.82748235]
[1745815087205,4.58250262,149.33,149.3,7.82748235]
[1745815087406,4.58250262,149.33,149.3,14.52308235]
[1745815087609,7.14157168,149.36,149.3,7.82748235]
[1745815087909,6.6935,149.35,149.31,6.695]
[1745815093712,6.6935,149.35,149.32,6.6948]
[1745815094105,6.6932,149.36,149.32,6.6948]
[1745815094614,24.08,149.37,149.29,9.17007168]
[1745815094803,27.9515,149.37,149.29,9.17007168]
[1745815095810,6.6939,149.35,149.29,9.17007168]
[1745815096610,6.6939,149.35,149.31,6.6951]
[1745815097011,7.14157168,149.36,149.29,2.0285]
[1745815097306,7.14157168,149.34,149.26,387.0903]
[1745815097504,7.14157168,149.34,149.26,26.0903]
[1745815097702,6.6947,149.33,149.28,6.6964]
[1745815098711,6.6947,149.33,149.29,6.6961]
[1745815099806,24.08,149.33,149.27,6.6969]
[1745815100509,6.6955,149.31,149.27,6.6969]
[1745815101211,6.695,149.32,149.28,6.6966]
[1745815102212,6.6953,149.31,149.28,6.6966]
[1745815103113,24.08,149.33,149.28,6.6966]
[1745815103114,6.695,149.32,149.28,6.6966]
[1745815103615,30.7745,149.33,149.29,6.6961]
[1745815104415,6.6949,149.32,149.29,6.6961]
[1745815104915,6.6949,149.32,149.28,6.6965]
[1745815105715,30.7745,149.33,149.29,6.6961]
[1745815106318,30.7745,149.33,149.3,6.6956]
[1745815107018,24.08,149.33,149.3,6.6956]
[1745815107419,31.24157168,149.36,149.31,6.695]
[1745815107617,6.6942,149.34,149.28,7.14157168]
[1745815107919,6.6942,149.34,149.3,6.6955]
[1745815109420,31.24157168,149.36,149.27,2.0365]
[1745815109619,4.57182402,149.31,149.27,2.0365]